bitfinex-derivatives/quotes_BTCF0:USTF0_20241003
["timestamp","ask_amount","ask_price","bid_price","bid_amount"]
[1727966637022,0.37384,60366.0,60365.0,1e-08]
[1727966637328,0.37684,60366.0,60365.0,1e-08]
[1727966637525,0.08684,60366.0,60365.0,0.08284101]
[1727966637722,0.08584,60366.0,60365.0,0.08284101]
[1727966637924,0.08584,60366.0,60365.0,1e-08]
[1727966637925,0.37584,60366.0,60365.0,1e-08]
[1727966638123,0.37584,60366.0,60365.0,0.08284101]
[1727966638318,0.37584,60366.0,60365.0,1e-08]
[1727966638525,0.37684,60366.0,60365.0,1e-08]
[1727966639226,0.37684,60366.0,60362.0,0.082845]
[1727966639427,0.082844,60363.0,60362.0,0.082845]
[1727966639821,0.001,60366.0,60353.0,0.29]
[1727966640128,0.001,60366.0,60365.0,0.082841]
[1727966640328,0.002,60366.0,60365.0,0.443641]
[1727966640531,0.001,60366.0,60365.0,0.443641]
[1727966640832,0.082848,60361.0,60360.0,0.082847]
[1727966641220,0.082848,60361.0,60357.0,0.3608]
[1727966641221,0.082851,60358.0,60357.0,0.3608]
[1727966642128,0.082851,60358.0,60357.0,0.443652]
[1727966642332,0.082851,60358.0,60357.0,0.082852]
[1727966642534,0.082859,60355.0,60351.0,0.3608]
[1727966642831,0.082859,60352.0,60351.0,0.44366]
[1727966643233,0.082865,60348.0,60347.0,0.082866]
[1727966643439,0.082865,60348.0,60345.0,0.082868]
[1727966643440,0.082868,60346.0,60345.0,0.082868]
[1727966643652,0.082865,60348.0,60347.0,0.082866]
[1727966643931,0.02356364,60349.0,60348.0,0.082865]
[1727966644127,0.082859,60353.0,60351.0,0.007]
[1727966644529,0.082873,60343.0,60332.0,0.0708]
[1727966644737,0.082873,60342.0,60341.0,0.082873]
[1727966644940,0.082869,60346.0,60334.0,0.02317822]
[1727966645235,1.5,60347.0,60346.0,0.082867]
[1727966645437,1.582866,60347.0,60346.0,0.082867]
[1727966645926,1.5,60347.0,60346.0,0.082867]
[1727966646529,0.004,60347.0,60346.0,0.083867]
[1727966647248,0.08287,60344.0,60343.0,0.443671]
[1727966647829,0.003,60347.0,60346.0,0.082867]
[1727966648230,0.001,60347.0,60346.0,0.082867]
[1727966648542,0.08285,60359.0,60358.0,0.082847]
[1727966648744,0.082841,60366.0,60365.0,0.082841]
[1727966648932,0.082838,60369.0,60368.0,0.082836]
[1727966649242,0.0260138,60370.0,60369.0,0.082836]
[1727966649441,0.00248597,60370.0,60369.0,0.082836]
[1727966649747,0.29,60389.0,60369.0,0.443636]
[1727966649945,0.00132,60377.0,60376.0,0.082826]
[1727966650239,0.443605,60392.0,60389.0,0.082808]
[1727966650240,0.02362675,60390.0,60389.0,0.082808]
[1727966650440,0.3608,60392.0,60386.0,0.082813]
[1727966650744,0.29,60391.0,60386.0,0.082813]
[1727966651139,0.29,60391.0,60376.0,0.38430871]
[1727966651442,0.082815,60384.0,60377.0,0.082825]
[1727966651737,0.08282,60381.0,60377.0,0.082825]
[1727966651939,0.372813,60386.0,60377.0,0.082825]
[1727966652129,0.29,60386.0,60376.0,0.3608]
[1727966652332,0.46704659,60392.0,60382.0,0.082817]
[1727966652333,0.082807,60391.0,60382.0,0.082817]
[1727966652539,0.67616159,60392.0,60376.0,0.3608]
[1727966652738,0.08282,60381.0,60378.0,0.082823]
[1727966652951,0.082825,60377.0,60363.0,0.082844]
[1727966653159,0.3608,60384.0,60370.0,0.29]
[1727966653444,0.3608,60384.0,60381.0,0.082819]
[1727966653445,0.082819,60382.0,60381.0,0.082819]
[1727966653834,0.3608,60384.0,60383.0,0.082817]
[1727966653835,0.001,60384.0,60383.0,0.082817]
[1727966654337,0.082818,60383.0,60382.0,0.082817]
[1727966654545,0.082825,60379.0,60378.0,0.082823]
[1727966654844,0.082826,60377.0,60376.0,0.082826]
[1727966655237,0.082826,60376.0,60375.0,0.3608]
[1727966655441,0.082826,60376.0,60375.0,0.443628]
[1727966655941,0.008,60384.0,60383.0,0.082817]
[1727966656835,0.082797,60398.0,60397.0,0.082797]
[1727966657135,0.00248503,60399.0,60398.0,0.082796]
[1727966659234,0.00248503,60399.0,60398.0,1.179516]
[1727966659435,0.3608,60417.0,60409.0,0.082781]
[1727966659629,0.082771,60417.0,60416.0,0.082771]
[1727966659845,0.10597229,60417.0,60416.0,0.082771]
[1727966660044,0.02320129,60417.0,60416.0,0.082771]
[1727966660242,0.29,60423.0,60410.0,0.29]
[1727966660446,1.5,60428.0,60427.0,0.082756]
[1727966660447,1.50092,60428.0,60427.0,0.082756]
[1727966660638,0.02354613,60429.0,60419.0,0.29]
[1727966660834,0.00248384,60430.0,60428.0,0.082755]
[1727966661038,0.082754,60429.0,60428.0,0.082755]
[1727966661434,0.082758,60426.0,60425.0,0.082758]
[1727966661742,0.082758,60426.0,60419.0,0.082767]
[1727966661943,0.29,60422.0,60416.0,0.001]
[1727966662145,0.082768,60419.0,60416.0,0.001]
[1727966662346,0.29,60422.0,60416.0,0.001]
[1727966662540,0.082773,60415.0,60414.0,0.3608]
[1727966662844,0.082772,60416.0,60414.0,0.3608]
[1727966663245,0.29,60421.0,60414.0,0.3608]
[1727966663442,0.003,60428.0,60418.0,0.082768]
[1727966663746,0.003,60428.0,60417.0,0.29]
[1727966663747,0.082762,60424.0,60417.0,0.29]
[1727966664146,0.003,60419.0,60417.0,0.29]
[1727966664451,0.003,60419.0,60418.0,0.082769]
[1727966665052,0.003,60419.0,60418.0,0.083769]
[1727966665256,0.00032121,60419.0,60418.0,1.180289]
[1727966665644,0.00032121,60419.0,60418.0,0.001]
[1727966665952,0.00032121,60419.0,60418.0,0.373769]
[1727966666140,0.003,60428.0,60418.0,1.470289]
[1727966666343,0.003,60424.0,60423.0,0.082762]
[1727966667056,0.003,60428.0,60423.0,0.372762]
[1727966667348,0.00248384,60430.0,60429.0,0.082754]
[1727966667542,0.00248384,60430.0,60423.0,0.6508]
[1727966667745,0.00248384,60430.0,60426.0,0.082757]
[1727966667940,0.00248384,60430.0,60423.0,0.65272]
[1727966668140,0.00248384,60430.0,60423.0,0.001]
[1727966668141,0.08276,60424.0,60423.0,0.001]
[1727966668346,0.08276,60424.0,60418.0,0.001]
[1727966668656,0.00548384,60430.0,60418.0,0.291]
[1727966668843,0.08276,60424.0,60423.0,0.001]
[1727966669151,0.08276,60424.0,60423.0,0.002]
[1727966669743,0.08276,60424.0,60423.0,0.001]
[1727966669943,0.082757,60427.0,60423.0,0.001]
[1727966670246,0.00548384,60430.0,60429.0,0.082754]
[1727966670448,0.003,60430.0,60429.0,0.372754]
[1727966670649,0.003,60430.0,60429.0,1.469194]
[1727966670849,0.082742,60438.0,60429.0,0.082754]
[1727966671150,0.29,60433.0,60426.0,0.3608]
[1727966671351,0.082756,60427.0,60426.0,0.3608]
[1727966672841,0.082756,60427.0,60426.0,0.443558]
[1727966673847,0.082756,60427.0,60426.0,0.445558]
[1727966674049,0.082756,60427.0,60426.0,0.3628]
[1727966674444,0.082756,60427.0,60426.0,0.004]
[1727966675051,0.082756,60427.0,60426.0,0.003]
[1727966675353,0.082756,60427.0,60426.0,0.085758]
[1727966675561,0.3608,60436.0,60429.0,0.082752]
[1727966675562,0.082754,60430.0,60429.0,0.082752]
[1727966676263,0.082747,60434.0,60433.0,0.082746]
[1727966676752,0.065,60441.0,60430.0,0.082752]
[1727966676753,0.082753,60431.0,60430.0,0.082752]
[1727966677945,0.082741,60438.0,60429.0,0.082754]
[1727966677946,0.082748,60434.0,60429.0,0.082754]
[1727966678147,0.082748,60433.0,60432.0,0.082749]
[1727966679059,0.082751,60431.0,60430.0,0.004]
[1727966679652,0.082748,60434.0,60433.0,0.082747]
[1727966679852,0.082742,60438.0,60437.0,0.082743]
[1727966679853,0.18838242,60438.0,60437.0,0.082743]
[1727966680059,0.10563842,60438.0,60437.0,0.082743]
[1727966680460,1.583656,60442.0,60434.0,0.082746]
[1727966680654,1.582736,60442.0,60441.0,0.082737]
[1727966680963,0.082736,60442.0,60441.0,0.082737]
[1727966681862,0.082744,60437.0,60436.0,0.082742]
[1727966682053,0.082739,60440.0,60439.0,0.082736]
[1727966682258,1.52401295,60443.0,60439.0,0.082736]
[1727966682557,0.44600804,60451.0,60442.0,0.3608]
[1727966682558,0.0703,60450.0,60442.0,0.3608]
[1727966682764,0.00248304,60451.0,60450.0,0.082725]
[1727966683762,0.31600539,60451.0,60442.0,0.3608]
[1727966683965,0.082734,60443.0,60442.0,0.3608]
[1727966684477,0.082734,60443.0,60439.0,0.443539]
[1727966684478,0.082739,60440.0,60439.0,0.3608]
[1727966684657,0.082743,60437.0,60436.0,0.082744]
[1727966685284,0.082734,60443.0,60428.0,0.733554]
[1727966685285,0.082752,60431.0,60430.0,0.082751]
[1727966685962,0.082754,60429.0,60428.0,0.3608]
[1727966686461,0.082754,60429.0,60428.0,0.443555]
[1727966686668,0.082754,60429.0,60428.0,0.3608]
[1727966687473,0.082751,60432.0,60428.0,0.6508]
[1727966687777,0.00096,60435.0,60434.0,0.082747]
[1727966688070,0.082745,60437.0,60436.0,0.082743]
[1727966688372,0.08275,60434.0,60433.0,0.082748]
[1727966688566,0.082754,60430.0,60429.0,0.082752]
[1727966688865,0.29,60443.0,60428.0,0.3608]
[1727966689065,0.11470953,60441.0,60440.0,0.082739]
[1727966689367,0.0681,60446.0,60437.0,0.29]
[1727966689368,0.082731,60446.0,60437.0,0.29]
[1727966689565,0.00248304,60451.0,60441.0,0.6508]
[1727966689766,0.03196367,60450.0,60449.0,0.082726]
[1727966690064,0.00248304,60451.0,60446.0,0.29]
[1727966690266,0.10828484,60451.0,60450.0,0.082725]
[1727966690571,0.14024652,60451.0,60450.0,0.082725]
[1727966690975,0.082728,60448.0,60447.0,0.082729]
[1727966691367,0.31556084,60451.0,60440.0,0.001]
[1727966691670,0.082737,60441.0,60440.0,0.001]
[1727966691973,0.082737,60441.0,60427.0,0.65168]
[1727966692164,0.082741,60438.0,60428.0,0.02294638]
[1727966692470,0.082741,60438.0,60434.0,0.082746]
[1727966692658,0.29,60440.0,60427.0,0.3608]
[1727966692864,0.082752,60431.0,60430.0,0.082751]
[1727966693264,1.582752,60431.0,60430.0,0.082751]
[1727966693671,0.082752,60431.0,60430.0,0.082751]
[1727966695171,0.001,60431.0,60430.0,0.082752]
[1727966695873,0.02319604,60433.0,60432.0,0.08275]
[1727966696068,1.50096,60435.0,60432.0,0.08275]
[1727966696273,1.50096,60435.0,60427.0,0.6508]
[1727966696274,0.082756,60428.0,60427.0,0.082756]
[1727966696977,0.082756,60428.0,60427.0,0.443556]
[1727966697173,0.082756,60428.0,60427.0,0.3608]
[1727966697486,0.082756,60428.0,60426.0,0.00248227]
[1727966697487,0.082756,60427.0,60426.0,0.00248227]
[1727966698376,0.082758,60426.0,60413.0,0.3608]
[1727966698577,0.082772,60418.0,60417.0,0.082768]
[1727966699776,0.437158,60426.0,60420.0,0.082764]
[1727966699777,0.082765,60421.0,60420.0,0.082764]
[1727966700368,0.082765,60421.0,60413.0,0.6508]
[1727966700369,0.082755,60428.0,60418.0,0.29]
[1727966700576,0.08276,60426.0,60425.0,0.082756]
[1727966700761,0.082762,60424.0,60413.0,0.3608]
[1727966700966,0.082774,60414.0,60413.0,0.443575]
[1727966701170,0.082784,60408.0,60407.0,0.082784]
[1727966701377,0.29,60416.0,60395.0,0.06601973]
[1727966701378,0.082798,60398.0,60395.0,0.06601973]
[1727966701680,0.443579,60411.0,60389.0,0.3608]
[1727966701681,0.082807,60390.0,60389.0,0.3608]
[1727966701861,0.082813,60386.0,60384.0,0.082815]
[1727966702062,0.29,60392.0,60376.0,0.6508]
[1727966702274,0.0664,60393.0,60392.0,0.082804]
[1727966702481,1.5,60397.0,60390.0,0.29]
[1727966702681,0.082789,60403.0,60390.0,0.29]
[1727966702873,0.443581,60409.0,60395.0,0.29]
[1727966702874,0.082787,60405.0,60395.0,0.29]
[1727966703175,0.02552252,60411.0,60410.0,0.08278]
[1727966703380,0.00248426,60411.0,60410.0,0.08278]
[1727966703877,0.08526226,60411.0,60410.0,0.08278]
[1727966704081,0.00248426,60411.0,60410.0,0.08278]
[1727966704979,0.082748,60434.0,60424.0,0.08276]
[1727966704980,0.082759,60425.0,60424.0,0.08276]
[1727966705368,0.082759,60425.0,60419.0,0.29]
[1727966705369,1.5,60431.0,60419.0,0.29]
[1727966705575,1.52292031,60431.0,60416.0,0.44]
[1727966705884,0.082765,60421.0,60411.0,0.0688]
[1727966706071,0.082777,60412.0,60410.0,0.38569024]
[1727966706275,0.082774,60415.0,60412.0,0.082776]
[1727966706577,0.3608,60422.0,60410.0,0.002]
[1727966706578,0.082778,60411.0,60410.0,0.002]
[1727966706780,0.443578,60411.0,60410.0,0.002]
[1727966707081,0.443578,60411.0,60396.0,0.00248351]
[1727966707082,0.082797,60397.0,60396.0,0.00248351]
[1727966707382,0.082811,60388.0,60385.0,0.082814]
[1727966707571,1.5,60395.0,60381.0,0.0636]
[1727966708281,1.5,60395.0,60384.0,0.082815]
[1727966708493,0.082819,60381.0,60379.0,0.082822]
[1727966708780,0.082814,60386.0,60382.0,0.082817]
[1727966709081,0.082818,60382.0,60381.0,0.007]
[1727966709274,0.082818,60382.0,60381.0,0.014]
[1727966709674,0.44,60385.0,60361.0,0.8008]
[1727966709675,0.082836,60369.0,60366.0,0.3608]
[1727966709880,0.082824,60378.0,60365.0,0.082841]
[1727966709881,0.44,60371.0,60365.0,0.082841]
[1727966710077,0.082843,60364.0,60360.0,0.082847]
[1727966710386,0.082844,60363.0,60362.0,0.082845]
[1727966710576,0.082844,60363.0,60353.0,0.44824986]
[1727966710577,1.5,60370.0,60354.0,0.082856]
[1727966710885,0.082846,60362.0,60353.0,0.4251]
[1727966711076,0.44,60365.0,60353.0,0.3608]
[1727966711276,0.44,60365.0,60352.0,0.08534431]
[1727966711277,0.082855,60355.0,60352.0,0.08534431]
[1727966711471,0.444643,60364.0,60360.0,0.014]
[1727966711674,0.082848,60360.0,60352.0,0.00248531]
[1727966711869,0.082858,60353.0,60352.0,0.00248531]
[1727966712074,0.082858,60353.0,60328.0,0.44]
[1727966712280,0.082858,60353.0,60330.0,0.3608]
[1727966712281,0.082874,60341.0,60330.0,0.3608]
[1727966712480,0.44,60350.0,60343.0,0.082871]
[1727966712481,0.082865,60348.0,60343.0,0.082871]
[1727966712682,0.082867,60347.0,60333.0,0.44]
[1727966712878,0.082861,60351.0,60333.0,0.44]
[1727966713079,0.082861,60351.0,60348.0,0.082865]
[1727966713289,0.001,60353.0,60352.0,0.082859]
[1727966714292,0.083858,60353.0,60352.0,0.082859]
[1727966714581,0.001,60353.0,60352.0,0.082859]
[1727966714984,0.001,60353.0,60345.0,0.3608]
[1727966715294,0.082859,60353.0,60345.0,0.3608]
[1727966715485,0.001,60351.0,60350.0,0.082861]
[1727966715683,0.082862,60350.0,60347.0,0.082865]
[1727966715889,0.082862,60350.0,60338.0,0.00248589]
[1727966715890,0.082867,60346.0,60338.0,0.00248589]
[1727966716094,0.44,60343.0,60338.0,0.00248589]
[1727966716387,0.44,60343.0,60325.0,0.3608]
[1727966716388,0.3608,60340.0,60325.0,0.3608]
[1727966716686,0.44,60338.0,60325.0,0.3608]
[1727966716890,0.44,60338.0,60335.0,0.082881]
[1727966717185,0.082878,60339.0,60338.0,0.082878]
[1727966717387,0.3608,60340.0,60325.0,0.3608]
[1727966717601,0.082887,60332.0,60329.0,0.08289]
[1727966717883,0.082889,60331.0,60330.0,0.082889]
[1727966718088,0.44,60333.0,60325.0,0.3608]
[1727966718089,0.082886,60333.0,60325.0,0.3608]
[1727966718278,0.082886,60333.0,60332.0,0.082887]
[1727966718479,0.082886,60333.0,60325.0,0.3608]
[1727966718480,0.44,60333.0,60328.0,0.082892]
[1727966718678,0.082892,60329.0,60328.0,0.082892]
[1727966718886,0.082895,60326.0,60325.0,0.3608]
[1727966719088,0.08289,60330.0,60327.0,0.082893]
[1727966719393,0.065,60339.0,60315.0,0.02347513]
[1727966719394,0.082897,60325.0,60315.0,0.02347513]
[1727966719585,0.44,60328.0,60321.0,0.082901]
[1727966719781,0.0829,60322.0,60321.0,0.082901]
[1727966720081,0.44,60328.0,60313.0,0.02356083]
[1727966720279,0.3608,60327.0,60315.0,0.08291]
[1727966720477,0.3608,60327.0,60305.0,0.36416723]
[1727966720478,0.082917,60311.0,60305.0,0.36416723]
[1727966720775,0.3608,60322.0,60305.0,0.00248723]
[1727966720776,0.082922,60306.0,60305.0,0.00248723]
[1727966720978,0.3608,60308.0,60305.0,0.08541023]
[1727966721185,0.44,60313.0,60312.0,0.082914]
[1727966721494,0.3608,60316.0,60305.0,0.00248723]
[1727966721495,0.3608,60316.0,60315.0,0.003]
[1727966721794,0.3608,60316.0,60315.0,0.08591]
[1727966721973,0.38355948,60316.0,60315.0,0.08291]
[1727966722579,0.46646848,60316.0,60315.0,0.08291]
[1727966722778,0.3608,60316.0,60315.0,0.08291]
[1727966723088,0.001,60329.0,60321.0,0.082902]
[1727966723278,0.3608,60332.0,60322.0,0.0829]
[1727966723483,0.3608,60332.0,60328.0,0.08289]
[1727966723484,0.082891,60329.0,60328.0,0.08289]
[1727966723685,0.3608,60332.0,60316.0,0.082908]
[1727966723880,0.38343567,60332.0,60318.0,0.082905]
[1727966724086,0.08289,60330.0,60318.0,0.082905]
[1727966724294,0.38343567,60332.0,60331.0,0.082888]
[1727966724590,0.38343567,60332.0,60315.0,0.449]
[1727966724591,0.38343567,60332.0,60320.0,0.082903]
[1727966724792,0.082906,60318.0,60315.0,0.009]
[1727966724985,0.082906,60318.0,60317.0,0.082907]
[1727966725288,0.44,60321.0,60311.0,0.3608]
[1727966725490,0.001,60316.0,60315.0,0.08591]
[1727966726379,0.082909,60316.0,60315.0,0.08591]
[1727966726784,0.522909,60316.0,60315.0,0.003]
[1727966727090,1.620309,60316.0,60315.0,0.003]
[1727966727298,0.16582,60315.0,60305.0,0.08541123]
[1727966727592,0.082922,60306.0,60305.0,0.00248723]
[1727966727797,0.44,60307.0,60306.0,0.082922]
[1727966727986,0.082919,60309.0,60308.0,0.08292]
[1727966728380,0.02426354,60316.0,60305.0,0.00248723]
[1727966728586,0.082912,60314.0,60312.0,0.082913]
[1727966728791,0.082912,60314.0,60313.0,0.082913]
[1727966728979,0.082912,60314.0,60305.0,0.00248723]
[1727966729183,0.44,60308.0,60307.0,0.082921]
[1727966729385,0.44,60308.0,60305.0,0.00248723]
[1727966729386,0.082922,60306.0,60305.0,0.00248723]
[1727966729991,0.082922,60306.0,60295.0,0.02287199]
[1727966729992,0.52292,60308.0,60295.0,0.02287199]
[1727966730190,0.08293,60301.0,60292.0,0.082941]
[1727966730397,0.08293,60301.0,60289.0,0.136045]
[1727966730789,0.082924,60306.0,60305.0,0.082924]
[1727966731494,0.46267862,60308.0,60305.0,0.082924]
[1727966731495,0.46267862,60308.0,60307.0,0.082921]
[1727966731687,0.54559862,60308.0,60307.0,0.082921]
[1727966731999,0.082916,60311.0,60310.0,0.082917]
[1727966734190,0.00096,60313.0,60312.0,0.082914]
[1727966734382,0.082906,60318.0,60317.0,0.082905]
[1727966734582,0.00248802,60320.0,60312.0,0.082914]
[1727966734583,0.082915,60313.0,60312.0,0.082914]
[1727966734890,0.522916,60312.0,60311.0,0.082916]
[1727966735990,0.522916,60312.0,60311.0,0.083916]
[1727966736192,0.522916,60312.0,60311.0,0.001]
[1727966736394,1.020316,60312.0,60311.0,0.001]
[1727966736706,1.021316,60312.0,60311.0,0.006]
[1727966736996,0.5466071,60312.0,60311.0,0.006]
[1727966737192,0.5466071,60312.0,60311.0,0.088916]
[1727966737396,0.0236911,60312.0,60311.0,0.088916]
[1727966737694,0.001,60312.0,60311.0,0.088916]
[1727966738093,0.001,60312.0,60311.0,0.15493573]
[1727966738396,1.1306,60328.0,60319.0,0.082905]
[1727966738601,0.3608,60328.0,60319.0,0.082905]
[1727966738804,0.3608,60336.0,60327.0,0.082894]
[1727966739094,0.00248723,60339.0,60335.0,0.04921857]
[1727966739395,0.08536423,60339.0,60338.0,0.082878]
[1727966739600,0.00248723,60339.0,60338.0,0.082878]
[1727966739791,0.00248723,60339.0,60338.0,0.443678]
[1727966739990,0.44,60354.0,60351.0,0.082861]
[1727966740295,0.44,60354.0,60349.0,0.04927136]
[1727966740498,0.082863,60349.0,60347.0,0.04927136]
[1727966740695,0.082867,60346.0,60342.0,0.06569515]
[1727966740890,0.44,60343.0,60340.0,0.06569515]
[1727966741090,0.522872,60343.0,60341.0,0.06569515]
[1727966741294,0.522872,60343.0,60341.0,0.082874]
[1727966741588,0.44,60343.0,60341.0,0.06569515]
[1727966741793,0.003,60346.0,60333.0,0.12834338]
[1727966741990,0.003,60346.0,60343.0,0.082872]
[1727966742292,0.082866,60347.0,60345.0,0.082869]
[1727966742605,0.082867,60346.0,60345.0,0.082869]
[1727966742789,0.44,60348.0,60333.0,0.14134338]
[1727966742987,0.44,60337.0,60336.0,0.082881]
[1727966743203,0.3608,60344.0,60343.0,0.082872]
[1727966743500,0.002,60346.0,60345.0,0.082869]
[1727966743690,0.003,60346.0,60345.0,0.082869]
[1727966743889,1.10012,60346.0,60337.0,0.04934275]
[1727966744102,0.522878,60339.0,60337.0,0.082879]
[1727966744900,0.522878,60339.0,60329.0,0.02278176]
[1727966744901,0.3608,60343.0,60330.0,0.04934275]
[1727966745202,0.3608,60343.0,60342.0,0.082873]
[1727966745800,0.003,60344.0,60343.0,0.082872]
[1727966746093,0.082876,60340.0,60337.0,0.04934275]
[1727966746406,0.082876,60340.0,60333.0,0.05040885]
[1727966746407,0.3608,60338.0,60333.0,0.05040885]
[1727966746591,0.522884,60334.0,60333.0,0.001]
[1727966747703,1.620124,60334.0,60333.0,0.001]
[1727966747904,1.49319304,60334.0,60333.0,0.001]
[1727966748100,1.49919304,60334.0,60333.0,0.001]
[1727966748404,0.40195304,60334.0,60333.0,0.001]
[1727966748606,0.40195304,60334.0,60333.0,0.083885]
[1727966748607,0.10595304,60334.0,60333.0,0.083885]
[1727966748907,0.03206904,60334.0,60333.0,0.090885]
[1727966749090,0.03206904,60334.0,60333.0,0.008]
[1727966749091,0.32206904,60334.0,60333.0,0.008]
[1727966749297,1.50419304,60334.0,60333.0,0.008]
[1727966749601,0.082899,60323.0,60322.0,0.06569515]
[1727966749801,0.082913,60313.0,60308.0,0.09721119]
[1727966750006,0.082924,60305.0,60304.0,0.3608]
[1727966750204,0.082914,60312.0,60304.0,0.3608]
[1727966750205,0.26505195,60306.0,60304.0,0.48655594]
[1727966750400,0.443724,60305.0,60293.0,0.09721119]
[1727966750606,0.082938,60295.0,60294.0,0.12597021]
[1727966750802,0.443724,60305.0,60294.0,0.12597021]
[1727966750996,0.082929,60301.0,60295.0,0.12597021]
[1727966751197,1.50096,60304.0,60296.0,0.12467122]
[1727966751392,1.50096,60304.0,60299.0,0.082931]
[1727966751393,1.582926,60304.0,60299.0,0.082931]
[1727966751702,0.38463512,60305.0,60301.0,0.082929]
[1727966751908,0.38563512,60305.0,60304.0,0.009]
[1727966752102,0.3628,60305.0,60304.0,0.091925]
[1727966752400,0.002,60305.0,60304.0,0.091925]
[1727966752828,0.002,60305.0,60304.0,0.082925]
[1727966753195,0.082928,60302.0,60301.0,0.004]
[1727966753394,0.524925,60305.0,60301.0,0.004]
[1727966753598,0.001,60304.0,60301.0,0.004]
[1727966753795,0.001,60304.0,60303.0,0.082926]
[1727966754212,0.0234536,60308.0,60307.0,0.082921]
[1727966754403,0.3608,60310.0,60309.0,0.082918]
[1727966754905,0.3608,60320.0,60319.0,0.082905]
[1727966755110,0.443703,60320.0,60319.0,0.082905]
[1727966755310,0.3608,60331.0,60315.0,0.44]
[1727966755494,0.082883,60335.0,60326.0,0.082895]
[1727966755694,0.082892,60328.0,60321.0,0.3608]
[1727966755905,0.165785,60328.0,60324.0,0.082897]
[1727966756100,0.165785,60328.0,60316.0,0.3608]
[1727966756101,0.44,60327.0,60316.0,0.3608]
[1727966756297,0.082896,60325.0,60322.0,0.0829]
[1727966756709,0.522894,60327.0,60326.0,0.001]
[1727966757095,0.02283376,60328.0,60327.0,0.082894]
[1727966757295,0.3608,60330.0,60328.0,0.082892]
[1727966757495,0.3608,60330.0,60329.0,0.082891]
[1727966757701,0.002,60325.0,60323.0,0.3608]
[1727966758010,0.002,60325.0,60324.0,0.082898]
[1727966758312,0.8008,60339.0,60328.0,0.082891]
[1727966758313,0.02294962,60329.0,60328.0,0.082891]
[1727966758507,0.3608,60334.0,60322.0,0.001]
[1727966758702,0.3608,60334.0,60329.0,0.08289]
[1727966758908,0.082889,60330.0,60329.0,0.08289]
[1727966760004,0.082889,60330.0,60327.0,0.001]
[1727966760005,1.944605,60334.0,60327.0,0.001]
[1727966760204,0.3608,60334.0,60327.0,0.001]
[1727966760402,0.38431502,60339.0,60333.0,0.082885]
[1727966760600,0.082884,60335.0,60334.0,0.082884]
[1727966760799,0.44248749,60341.0,60340.0,0.082876]
[1727966760800,0.00248749,60341.0,60340.0,0.082876]
[1727966762703,0.08536149,60341.0,60340.0,0.082876]
[1727966762904,0.08536149,60341.0,60331.0,0.3608]
[1727966762905,0.082885,60337.0,60331.0,0.3608]
[1727966763109,0.082882,60336.0,60331.0,0.3608]
[1727966763306,0.082877,60339.0,60338.0,0.082877]
[1727966763613,0.01348749,60341.0,60340.0,0.082876]
[1727966763818,0.09636149,60341.0,60340.0,0.082876]
[1727966764107,0.05951374,60341.0,60340.0,0.082876]
[1727966764510,0.04551284,60341.0,60340.0,0.082876]
[1727966764809,0.01348749,60341.0,60340.0,0.082876]
[1727966765111,0.00248749,60341.0,60340.0,0.082876]
[1727966765405,0.08288,60338.0,60337.0,0.082876]
[1727966765612,0.01648749,60341.0,60340.0,0.082876]
[1727966766108,0.02748749,60341.0,60340.0,0.083876]
[1727966766410,0.11036149,60341.0,60340.0,0.083876]
[1727966766710,0.082892,60331.0,60330.0,0.082888]
[1727966767208,0.11491817,60331.0,60330.0,0.082888]
[1727966767519,0.082892,60328.0,60327.0,0.00248616]
[1727966767827,0.11491817,60328.0,60327.0,0.00248616]
[1727966768005,0.11491817,60328.0,60327.0,0.08538016]
[1727966768200,0.11491817,60328.0,60327.0,0.082894]
[1727966768505,0.13778331,60328.0,60327.0,0.082894]
[1727966768703,0.082899,60324.0,60323.0,0.082897]
[1727966768914,0.02286514,60328.0,60327.0,0.082894]
[1727966769116,0.004,60331.0,60321.0,0.44]
[1727966769117,0.086888,60331.0,60330.0,0.082889]
[1727966769411,0.0370269,60331.0,60330.0,0.082889]
[1727966769918,0.004,60331.0,60330.0,0.082889]
[1727966770215,0.3608,60343.0,60342.0,0.082873]
[1727966770410,0.07261291,60343.0,60342.0,0.082873]
[1727966770598,0.03202012,60343.0,60342.0,0.082873]
[1727966770998,0.07261217,60344.0,60342.0,0.082873]
[1727966771215,0.082878,60340.0,60339.0,0.082877]
[1727966771517,0.0726149,60340.0,60339.0,0.082877]
[1727966771708,0.07261755,60342.0,60339.0,0.082877]
[1727966771916,0.014,60343.0,60340.0,0.082876]
[1727966772110,0.014,60343.0,60342.0,0.082873]
[1727966772307,0.02318239,60346.0,60345.0,0.082869]
[1727966772510,0.3608,60350.0,60342.0,0.082873]
[1727966772708,0.082897,60326.0,60325.0,0.082895]
[1727966772909,0.082874,60342.0,60322.0,0.0829]
[1727966773108,0.8008,60343.0,60322.0,0.0829]
[1727966773109,0.3618,60343.0,60323.0,0.44]
[1727966773311,0.013,60343.0,60342.0,0.001]
[1727966773517,0.00248662,60356.0,60355.0,0.082855]
[1727966774421,0.13019207,60373.0,60355.0,1.09704]
[1727966774422,0.082832,60372.0,60355.0,1.09704]
[1727966774611,0.082832,60372.0,60360.0,0.44]
[1727966774612,0.03201914,60371.0,60360.0,0.44]
[1727966774916,0.03201914,60370.0,60360.0,0.44]
[1727966775114,0.10604528,60372.0,60360.0,0.44]